bitfinex-derivatives/quotes_SOLF0:USTF0_20260302
["timestamp","ask_amount","ask_price","bid_price","bid_amount"]
[1772435446942,9.61461848,82.58,82.519,10.907]
[1772435447235,9.61461848,82.58,82.52,7.21412555]
[1772435447639,9.61461848,82.58,82.523,7.21199739]
[1772435448240,9.61461848,82.58,82.524,10.906]
[1772435449043,10.898,82.589,82.529,10.905]
[1772435449238,9.61461848,82.59,82.53,7.2130156]
[1772435449742,9.61461848,82.59,82.533,7.21300911]
[1772435450941,10.896,82.601,82.533,7.21300911]
[1772435450942,9.61461848,82.6,82.533,7.21300911]
[1772435451145,9.61461848,82.59,82.538,10.904]
[1772435453338,9.61461848,82.6,82.521,7.26084992]
[1772435453541,9.61461848,82.6,82.531,7.2813745]
[1772435453740,9.61461848,82.59,82.531,7.2813745]
[1772435454133,2.1078709,82.615,82.531,7.2813745]
[1772435454134,9.61461848,82.58,82.531,7.2813745]
[1772435454538,9.61461848,82.59,82.531,7.2813745]
[1772435455244,10.896,82.599,82.535,7.28225305]
[1772435455447,9.61461848,82.6,82.535,7.28225305]
[1772435455636,9.61461848,82.61,82.541,7.35172185]
[1772435455840,9.61461848,82.61,82.557,10.902]
[1772435456136,20.50861848,82.62,82.557,10.902]
[1772435456741,9.61461848,82.61,82.541,7.35172185]
[1772435456941,9.61461848,82.6,82.541,7.35172185]
[1772435457147,9.61461848,82.59,82.541,7.35172185]
[1772435459952,20.50961848,82.61,82.543,7.46754784]
[1772435460149,9.61461848,82.6,82.543,7.46754784]
[1772435460351,9.61461848,82.63,82.561,7.46754784]
[1772435460551,9.61461848,82.64,82.577,7.4681868]
[1772435461242,9.61461848,82.64,82.583,10.898]
[1772435461446,9.61461848,82.64,82.577,7.4681868]
[1772435461645,9.61461848,82.65,82.581,7.46966941]
[1772435462040,9.61461848,82.64,82.581,7.46966941]
[1772435462748,9.61461848,82.63,82.561,7.47028931]
[1772435463347,9.61461848,82.62,82.561,7.47028931]
[1772435464241,9.61461848,82.62,82.565,10.901]
[1772435464549,9.61461848,82.62,82.561,7.47028931]
[1772435464748,10.891,82.641,82.561,7.47028931]
[1772435464749,9.61461848,82.63,82.561,7.47028931]
[1772435465049,9.61461848,82.63,82.56,9.61461848]
[1772435465050,9.61461848,82.64,82.574,7.45804208]
[1772435465448,9.61461848,82.6,82.538,7.46072537]
[1772435465753,9.61461848,82.59,82.538,7.46072537]
[1772435465949,9.61461848,82.57,82.519,7.46072537]
[1772435467755,9.61461848,82.57,82.52,10.907]
[1772435467955,9.61461848,82.58,82.519,7.46072537]
[1772435469152,9.61461848,82.58,82.524,10.906]
[1772435469556,10.899,82.579,82.519,7.46072537]
[1772435469751,9.61461848,82.57,82.519,7.46072537]
[1772435470444,10.901,82.561,82.5,7.5217847]
[1772435470650,9.61461848,82.55,82.5,7.5217847]
[1772435470851,9.61461848,82.56,82.503,10.909]
[1772435471153,9.61461848,82.57,82.504,7.5217847]
[1772435472052,9.61461848,82.55,82.504,7.5217847]
[1772435472251,9.61461848,82.54,82.481,7.52052716]
[1772435472461,9.61461848,82.53,82.481,7.52052716]
[1772435473450,10.904,82.539,82.461,7.52104113]
[1772435473451,9.61461848,82.52,82.461,7.52104113]
[1772435474658,9.61461848,82.51,82.461,7.52104113]
[1772435475053,9.61461848,82.5,82.444,7.52104164]
[1772435475753,9.61461848,82.56,82.461,7.53749266]
[1772435475754,9.61461848,82.54,82.461,7.53749266]
[1772435476156,9.61461848,82.54,82.44,9.61461848]
[1772435476157,9.61461848,82.54,82.471,7.53749266]
[1772435476857,9.61461848,82.55,82.485,7.53796525]
[1772435477060,9.61461848,82.56,82.485,7.53796525]
[1772435477253,9.61461848,82.57,82.491,7.53796525]
[1772435477454,9.61461848,82.57,82.499,10.909]
[1772435478152,10.9,82.569,82.499,10.909]
[1772435478354,9.61461848,82.56,82.504,10.909]
[1772435478554,9.61461848,82.57,82.504,18.46771116]
[1772435478754,9.61461848,82.57,82.505,7.55871116]
[1772435480355,9.61461848,82.57,82.506,18.4701331]
[1772435480560,9.61461848,82.58,82.511,7.56155792]
[1772435481060,9.61461848,82.58,82.524,10.906]
[1772435481453,9.61461848,82.59,82.533,10.905]
[1772435481661,9.61461848,82.59,82.521,7.53707074]
[1772435482057,10.94444153,82.633,82.52,9.61461848]
[1772435482058,9.61461848,82.61,82.542,7.53707074]
[1772435482459,9.61461848,82.61,82.553,10.902]
[1772435482658,242.22,82.652,82.52,9.61461848]
[1772435482659,242.22,82.652,82.554,7.53750744]
[1772435482860,9.61461848,82.64,82.561,7.53750744]
[1772435483062,9.61461848,82.65,82.584,10.898]
[1772435484061,9.61461848,82.65,82.585,7.51296318]
[1772435484267,9.61461848,82.66,82.595,10.897]
[1772435484763,10.887,82.669,82.596,7.5134099]
[1772435485264,9.61461848,82.67,82.596,7.5134099]
[1772435485765,9.61461848,82.66,82.599,7.52638398]
[1772435486066,9.61461848,82.67,82.599,7.52638398]
[1772435486269,9.61461848,82.67,82.601,7.52638398]
[1772435486764,14.80743888,82.712,82.56,9.61461848]
[1772435486765,9.61461848,82.69,82.611,7.52681334]
[1772435486960,9.61461848,82.68,82.611,7.52681334]
[1772435489571,10.884,82.69,82.611,7.52681334]
[1772435489768,10.886,82.679,82.611,7.52681334]
[1772435490072,2.10577909,82.705,82.611,7.52681334]
[1772435490073,9.61461848,82.67,82.611,7.52681334]
[1772435490272,10.887,82.669,82.591,7.50053226]
[1772435490465,9.61461848,82.66,82.595,10.897]
[1772435491168,9.61461848,82.66,82.602,10.896]
[1772435491368,10.887,82.669,82.602,10.896]
[1772435491764,9.61461848,82.67,82.605,18.41108636]
[1772435491974,9.61461848,82.68,82.61,9.61461848]
[1772435492175,9.61461848,82.68,82.611,7.51608636]
[1772435492573,9.61461848,82.68,82.615,10.894]
[1772435492967,9.61461848,82.68,82.593,7.51649414]
[1772435493163,9.61461848,82.67,82.595,7.51649414]
[1772435493369,9.61461848,82.66,82.595,7.51649414]
[1772435494073,10.887,82.667,82.597,7.53010045]
[1772435494279,9.61461848,82.68,82.601,7.53010045]
[1772435494476,10.886,82.678,82.615,10.894]
[1772435494678,9.55971545,82.69,82.616,7.53048582]
[1772435494877,9.55971545,82.69,82.62,9.55971545]
[1772435495177,9.55971545,82.68,82.616,7.53048582]
[1772435495570,10.886,82.678,82.616,7.53048582]
[1772435495978,9.55971545,82.67,82.608,10.895]
[1772435497377,10.887,82.669,82.608,10.895]
[1772435497975,10.887,82.669,82.599,7.52794684]
[1772435498879,10.887,82.669,82.603,10.896]
[1772435499076,20.44571545,82.68,82.604,7.52532548]
[1772435499282,9.55971545,82.68,82.604,7.52532548]
[1772435499673,10.887,82.671,82.61,10.895]
[1772435500380,10.889,82.654,82.587,18.42525708]
[1772435500675,9.55971545,82.65,82.571,7.52762314]
[1772435501482,10.891,82.637,82.58,10.899]
[1772435501776,9.55971545,82.64,82.581,7.52857963]
[1772435502383,9.55971545,82.64,82.587,7.52857963]
[1772435503486,9.55971545,82.63,82.57,7.52957726]
[1772435504591,10.892,82.629,82.57,7.52957726]
[1772435504891,9.55971545,82.64,82.573,7.51637486]
[1772435505790,9.55971545,82.65,82.581,7.53257716]
[1772435506192,10.89,82.644,82.584,7.53257716]
[1772435506785,10.89,82.644,82.57,9.55971545]
[1772435506786,9.55971545,82.65,82.594,7.53353249]
[1772435507094,9.55971545,82.66,82.594,7.53353249]
[1772435507288,9.55971545,82.67,82.594,7.53353249]
[1772435507593,9.55971545,82.66,82.594,7.53353249]
[1772435507890,9.55971545,82.66,82.609,7.55248051]
[1772435508793,32.55959225,82.683,82.613,7.5533751]
[1772435508994,9.55971545,82.68,82.613,7.5533751]
[1772435509393,32.55959225,82.683,82.63,10.892]
[1772435510091,10.885,82.688,82.63,10.892]
[1772435510691,10.885,82.688,82.622,7.55538788]
[1772435511592,9.55971545,82.72,82.604,7.55332777]
[1772435511795,9.55971545,82.67,82.604,7.55332777]
[1772435512188,10.887,82.669,82.604,7.55332777]
[1772435512388,9.55971545,82.67,82.611,7.55332777]
[1772435512889,18.57059923,82.72,82.494,199.42395883]
[1772435512890,9.55971545,82.69,82.621,7.55418486]
[1772435513696,9.55971545,82.69,82.631,10.892]
[1772435513697,10.885,82.688,82.631,10.892]
[1772435514194,9.55971545,82.72,82.621,7.55418486]
[1772435514195,9.55971545,82.68,82.621,7.55418486]
[1772435514794,10.887,82.671,82.622,10.893]
[1772435514991,9.55971545,82.68,82.622,10.893]
[1772435515396,10.887,82.669,82.622,10.893]
[1772435515696,10.887,82.669,82.613,10.894]
[1772435516998,10.887,82.669,82.546,36.37]
[1772435516999,9.55971545,82.66,82.59,9.55971545]
[1772435517199,9.55971545,82.65,82.588,7.55655561]
[1772435517498,10.889,82.656,82.6,7.55497733]
[1772435517700,9.55971545,82.67,82.601,7.55497733]
[1772435518199,9.55971545,82.66,82.601,7.55497733]
[1772435518591,9.55971545,82.65,82.601,7.55497733]
[1772435518792,9.55971545,82.66,82.601,7.55497733]
[1772435519297,10.89,82.649,82.601,7.55497733]
[1772435520795,10.889,82.658,82.602,10.896]
[1772435521002,9.55971545,82.66,82.601,7.55497733]
[1772435521701,36.37,82.697,82.601,7.55497733]
[1772435521702,9.55971545,82.67,82.601,7.55497733]
[1772435521895,9.55971545,82.67,82.561,21.803]
[1772435521896,9.55971545,82.66,82.585,7.56559193]
[1772435522093,9.55971545,82.68,82.585,7.56559193]
[1772435522094,9.55971545,82.65,82.585,7.56559193]
[1772435522594,9.55971545,82.64,82.568,7.56634846]
[1772435523006,9.55971545,82.64,82.579,7.56634846]
[1772435523397,9.55971545,82.65,82.581,7.56634846]
[1772435523600,9.55971545,82.67,82.601,7.56898682]
[1772435523794,32.77676419,82.675,82.601,7.56898682]
[1772435524105,9.09995861,82.674,82.601,7.56898682]
[1772435524402,10.887,82.669,82.623,10.893]
[1772435524603,32.77676419,82.675,82.623,10.893]
[1772435524799,32.77676419,82.675,82.624,7.56972474]
[1772435525395,9.55971545,82.7,82.624,7.56972474]
[1772435525598,9.11863348,82.699,82.637,7.56388616]
[1772435525798,9.11863348,82.704,82.637,7.56388616]
[1772435525995,9.55971545,82.71,82.6,9.55971545]
[1772435525996,9.55971545,82.71,82.641,7.56388616]
[1772435526202,9.12969007,82.709,82.641,7.56388616]
[1772435526507,9.55971545,82.72,82.641,7.56388616]
[1772435526707,9.12969007,82.719,82.641,7.56388616]
[1772435526905,9.12969007,82.718,82.641,7.56388616]
[1772435527111,9.12969007,82.717,82.641,7.56388616]
[1772435527295,9.55971545,82.72,82.65,10.89]
[1772435527296,10.882,82.705,82.65,10.89]
[1772435527500,10.882,82.705,82.651,7.56461791]
[1772435528704,18.68940552,82.71,82.654,18.41219947]
[1772435528900,9.06781922,82.713,82.654,7.52319947]
[1772435529210,9.55971545,82.71,82.654,7.52319947]
[1772435529799,9.06781922,82.716,82.655,10.889]
[1772435529999,9.06781922,82.715,82.655,10.889]
[1772435530203,9.06781922,82.719,82.655,10.889]
[1772435530407,10.881,82.715,82.657,10.889]
[1772435530598,9.55971545,82.71,82.656,7.49414058]
[1772435531906,18.62753467,82.72,82.656,7.49414058]
[1772435532105,10.882,82.707,82.656,7.49414058]
[1772435533506,10.882,82.707,82.657,7.51187889]
[1772435534307,9.55971545,82.7,82.64,7.51187889]
[1772435535705,9.55971545,82.71,82.64,7.51187889]
[1772435536302,10.883,82.699,82.642,7.55570987]
[1772435536814,10.883,82.699,82.647,7.55637163]
[1772435537605,9.06781922,82.721,82.651,7.55619387]
[1772435537809,9.55971545,82.73,82.651,7.55619387]
[1772435538011,10.881,82.717,82.657,7.55619387]
[1772435538210,9.55971545,82.72,82.657,7.55619387]
[1772435538608,10.882,82.709,82.659,7.55683758]
[1772435540216,10.882,82.709,82.609,22.52632433]
[1772435540217,2.1047984,82.735,82.661,7.56537312]
[1772435540515,9.55971545,82.75,82.671,7.56537312]
[1772435540706,9.06781922,82.753,82.671,7.56537312]
[1772435540707,9.55971545,82.74,82.671,7.56537312]
[1772435541011,10.877,82.748,82.683,7.56599289]
[1772435541608,466.93112052,82.754,82.694,7.56146606]
[1772435541812,9.55971545,82.79,82.711,7.56146606]
[1772435542011,9.55971545,82.8,82.731,7.56146606]
[1772435542316,2.10290328,82.815,82.75,9.55971545]
[1772435542516,9.55971545,82.82,82.751,7.56146606]
[1772435542814,9.55971545,82.78,82.716,7.56207631]
[1772435543015,9.55971545,82.79,82.721,7.56207631]
[1772435543517,9.55971545,82.81,82.741,7.56207631]
[1772435543920,9.04056474,82.831,82.741,7.56207631]
[1772435543921,9.55971545,82.82,82.741,7.56207631]
[1772435544315,9.55971545,82.81,82.741,7.56207631]
[1772435545218,9.55971545,82.8,82.741,7.56207631]
[1772435545419,9.55971545,82.81,82.741,7.56207631]
[1772435545809,9.55971545,82.79,82.725,7.61746118]
[1772435546416,9.55971545,82.8,82.725,7.61746118]
[1772435546817,10.87,82.797,82.726,7.61798672]
[1772435547118,9.55971545,82.77,82.71,7.61798672]
[1772435547515,10.874,82.769,82.71,7.61798672]
[1772435547814,9.55971545,82.8,82.71,7.61798672]
[1772435547815,9.55971545,82.76,82.71,7.61798672]
[1772435548816,10.873,82.777,82.712,10.881]
[1772435549016,9.55971545,82.76,82.71,7.61798672]
[1772435549920,10.874,82.769,82.71,7.61798672]
[1772435550121,9.55971545,82.78,82.712,7.63221012]
[1772435551225,10.873,82.779,82.714,7.6326985]
[1772435551426,9.55971545,82.78,82.714,7.6326985]
[1772435551627,9.55971545,82.79,82.721,7.66256735]
[1772435551824,10.871,82.789,82.721,7.66256735]
[1772435552725,9.55971545,82.79,82.723,7.66301262]
[1772435553227,20.42971545,82.8,82.735,7.66301262]
[1772435553422,10.871,82.791,82.735,7.66301262]
[1772435554625,9.53339448,82.79,82.735,7.66301262]
[1772435554926,9.53339448,82.79,82.721,7.67202819]
[1772435556226,10.871,82.789,82.727,7.65612946]
[1772435557331,10.871,82.789,82.729,7.65656117]
[1772435557532,10.873,82.78,82.729,7.65656117]
[1772435557921,20.40639448,82.78,82.729,7.65656117]
[1772435558728,10.873,82.78,82.729,7.65656117]
[1772435559426,10.874,82.77,82.713,7.66336439]
[1772435560627,9.53339448,82.78,82.719,7.66377355]
[1772435562037,10.873,82.779,82.719,7.66377355]
[1772435562331,9.53339448,82.78,82.719,7.66377355]
[1772435562732,10.873,82.778,82.719,7.66377355]
[1772435563838,9.53339448,82.8,82.722,7.69710099]
[1772435564038,9.53339448,82.81,82.731,7.69710099]
[1772435564235,9.53339448,82.8,82.731,7.69710099]
[1772435564432,9.53339448,82.79,82.731,7.69710099]
[1772435564739,10.872,82.787,82.731,7.69710099]
[1772435564938,9.53339448,82.79,82.731,7.69710099]
[1772435565333,9.53339448,82.78,82.731,7.69710099]
[1772435565533,9.53339448,82.79,82.731,7.69710099]
[1772435566136,36.37,82.829,82.68,9.53339448]
[1772435566137,10.875,82.761,82.701,7.69183374]
[1772435566640,9.53339448,82.74,82.685,7.69219019]
[1772435566830,10.877,82.744,82.685,7.69219019]
[1772435567235,10.878,82.736,82.685,7.69219019]
[1772435567439,9.53339448,82.75,82.685,7.69219019]
[1772435568032,10.877,82.745,82.685,7.69219019]
[1772435568239,9.53339448,82.75,82.685,7.69219019]
[1772435568842,9.53339448,82.74,82.685,7.69219019]
[1772435569337,10.878,82.739,82.685,7.69219019]
[1772435570842,20.40939448,82.75,82.685,7.69219019]
[1772435572443,10.878,82.741,82.689,7.65955106]
[1772435572642,9.53339448,82.74,82.689,7.65955106]
[1772435573034,10.878,82.741,82.689,7.65955106]
[1772435573837,10.878,82.737,82.689,7.65955106]
[1772435574641,9.53339448,82.74,82.689,7.65955106]
[1772435576241,9.53339448,82.72,82.67,7.61045844]
[1772435578843,9.53339448,82.73,82.67,7.61045844]
[1772435579946,9.53339448,82.73,82.679,10.886]
[1772435581653,9.53339448,82.75,82.688,7.61881591]
[1772435581849,9.53339448,82.76,82.688,7.61881591]
[1772435582255,9.53339448,82.76,82.706,10.882]
[1772435582644,9.53339448,82.76,82.688,7.61881591]
[1772435582845,9.53339448,82.75,82.688,7.61881591]
[1772435583550,9.53339448,82.74,82.688,7.61881591]
[1772435583748,9.53339448,82.74,82.67,9.53339448]
[1772435583749,9.53339448,82.73,82.671,7.63148417]
[1772435583952,9.53339448,82.76,82.671,7.63148417]
[1772435583953,9.53339448,82.72,82.671,7.63148417]
[1772435584654,9.53339448,82.72,82.673,10.887]
[1772435584954,9.53339448,82.76,82.674,7.6318139]
[1772435584955,9.53339448,82.74,82.674,7.6318139]
[1772435585456,9.53339448,82.73,82.677,18.5178139]
[1772435586157,9.53339448,82.73,82.685,10.885]
[1772435586855,9.53339448,82.74,82.695,10.884]
[1772435587251,9.53339448,82.74,82.677,7.6318139]
[1772435587447,9.53339448,82.73,82.677,7.6318139]
[1772435587654,9.53339448,82.73,82.681,7.64392488]
[1772435587952,9.53339448,82.74,82.681,7.64392488]
[1772435588154,10.877,82.746,82.681,7.64392488]
[1772435588352,10.876,82.756,82.699,7.64392488]
[1772435588548,9.53339448,82.76,82.699,7.64392488]
[1772435588953,10.875,82.759,82.707,10.882]
[1772435589159,9.53339448,82.75,82.699,7.64392488]
[1772435590060,10.877,82.748,82.699,7.64392488]
[1772435591358,9.53339448,82.75,82.699,7.64392488]
[1772435592162,9.53339448,82.75,82.702,10.883]
[1772435593457,9.53339448,82.75,82.709,10.882]
[1772435593762,10.875,82.759,82.702,7.65091328]
[1772435593960,9.53339448,82.76,82.702,7.65091328]
[1772435594560,4.00834411,82.73,82.687,7.65120008]
[1772435594761,4.00834411,82.73,82.69,4.00834411]
[1772435595262,4.00834411,82.73,82.691,7.65120008]
[1772435595563,4.00834411,82.72,82.68,4.00834411]
[1772435596259,4.00834411,82.72,82.68,14.89434411]
[1772435596473,10.879,82.733,82.678,7.65771538]
[1772435596855,9.54678246,82.74,82.678,7.65771538]
[1772435596856,9.54678246,82.75,82.678,7.65771538]
[1772435597360,10.877,82.748,82.696,10.883]
[1772435597859,10.879,82.729,82.678,7.65771538]
[1772435598364,9.54678246,82.74,82.678,7.65771538]
[1772435598960,9.54678246,82.74,82.688,7.62101163]
[1772435599164,14.85264508,82.777,82.688,7.62101163]
[1772435599165,9.54678246,82.75,82.688,7.62101163]
[1772435600467,10.877,82.749,82.689,10.884]
[1772435600966,10.877,82.749,82.694,10.884]
[1772435602262,8.94142874,82.76,82.645,21.781]
[1772435602263,10.875,82.758,82.703,7.57123756]
[1772435602460,8.94142874,82.768,82.703,7.57123756]
[1772435602761,9.54678246,82.77,82.703,7.57123756]
[1772435602959,9.54678246,82.77,82.715,10.881]
[1772435603161,9.54678246,82.78,82.703,7.57123756]
[1772435603672,9.54678246,82.78,82.726,7.56374675]
[1772435604265,10.873,82.779,82.726,7.56374675]
[1772435605068,10.874,82.769,82.726,7.56374675]
[1772435605470,10.874,82.769,82.712,7.56405125]
[1772435605777,9.54678246,82.76,82.712,7.56405125]
[1772435607367,10.875,82.76,82.712,7.56405125]
[1772435607572,20.42178246,82.76,82.711,10.881]
[1772435608176,9.54678246,82.76,82.713,7.60126066]
[1772435608576,10.874,82.769,82.713,7.60126066]
[1772435609077,36.37,82.807,82.68,9.54678246]
[1772435609078,10.873,82.778,82.722,7.60152966]
[1772435610074,9.54678246,82.76,82.692,7.59929952]
[1772435611275,9.54678246,82.75,82.7,10.883]
[1772435611776,9.54678246,82.75,82.692,7.59929952]
[1772435611981,10.878,82.738,82.692,7.59929952]
[1772435612380,10.876,82.751,82.695,10.884]
[1772435612571,8.9648962,82.778,82.695,10.884]
[1772435612572,9.54678246,82.75,82.695,18.47891104]
[1772435613179,9.54678246,82.74,82.682,10.885]
[1772435613986,9.54678246,82.75,82.685,7.59505858]
[1772435614482,9.54448016,82.75,82.685,7.59505858]
[1772435614684,9.54448016,82.74,82.685,7.59505858]
[1772435614881,9.54448016,82.74,82.691,10.884]
[1772435615775,10.878,82.739,82.694,7.59750209]
[1772435616586,4.00876966,82.73,82.694,7.59750209]
[1772435617286,4.00876966,82.73,82.696,10.883]
[1772435617884,4.00876966,82.72,82.687,10.885]
[1772435619887,4.00876966,82.72,82.68,11.60718781]
[1772435620489,4.00876966,82.72,82.681,10.885]
[1772435620687,4.00876966,82.72,82.682,7.59865306]
[1772435622088,4.00876966,82.72,82.67,11.61486281]
[1772435622290,4.00876966,82.72,82.671,7.60609315]
[1772435623290,4.00876966,82.72,82.671,18.49309315]
[1772435623490,4.00876966,82.72,82.672,7.60645651]
[1772435624188,4.00876966,82.72,82.674,10.886]
[1772435624384,4.00876966,82.72,82.675,7.60037436]
[1772435625291,4.00876966,82.72,82.678,10.886]
[1772435625793,4.00876966,82.72,82.681,7.62602576]
[1772435626090,4.00876966,82.73,82.684,7.62602576]
[1772435626294,4.00876966,82.74,82.701,7.62602576]
[1772435626696,4.00876966,82.75,82.701,7.62602576]
[1772435627092,4.00876966,82.76,82.711,7.62635891]
[1772435627598,4.00876966,82.75,82.711,7.62635891]
[1772435628297,4.00876966,82.75,82.713,18.54312081]
[1772435629300,4.00876966,82.75,82.702,7.66241797]
[1772435629994,4.00876966,82.74,82.702,7.66241797]
[1772435633092,10.877,82.747,82.69,4.00876966]
[1772435633295,4.00876966,82.73,82.689,10.884]
[1772435633493,4.00876966,82.72,82.687,7.65622508]
[1772435636605,4.00876966,82.72,82.673,7.65256032]
[1772435637505,4.00876966,82.71,82.66,4.00876966]
[1772435637702,4.00876966,82.71,82.671,7.66644343]
[1772435637999,36.37,82.76,82.671,7.66644343]
[1772435638000,4.00876966,82.72,82.671,7.66644343]
[1772435639104,4.00876966,82.72,82.68,4.00876966]
[1772435639508,4.00876966,82.72,82.681,7.67597905]
[1772435639811,4.00876966,82.73,82.69,4.00876966]
[1772435640207,4.00876966,82.73,82.691,18.55997905]
[1772435640506,4.00876966,82.74,82.692,7.67597905]
[1772435640703,4.00876966,82.73,82.692,7.67597905]
[1772435641301,4.00876966,82.72,82.68,4.00876966]
[1772435641506,4.00876966,82.71,82.664,7.67623065]
[1772435641703,4.00876966,82.71,82.606,36.72641994]
[1772435641704,4.00876966,82.69,82.655,7.67664391]
[1772435642105,4.00876966,82.7,82.655,7.67664391]
[1772435642303,4.00876966,82.69,82.655,7.67664391]
[1772435642503,4.00876966,82.69,82.64,11.68565785]
[1772435644812,4.00876966,82.68,82.64,7.67688819]
[1772435645309,4.00876966,82.67,82.64,7.67688819]
[1772435645514,4.00876966,82.67,82.63,4.00876966]
[1772435646314,4.00876966,82.67,82.63,11.75098942]
[1772435648216,4.00876966,82.67,82.63,7.74221976]
[1772435649118,4.00876966,82.67,82.631,7.74789142]
[1772435650313,4.00876966,82.67,82.623,10.893]
[1772435650512,4.00876966,82.66,82.623,10.893]
[1772435650716,4.00876966,82.67,82.63,4.00876966]
[1772435651219,4.00876966,82.67,82.631,7.72480324]
[1772435656620,4.00876966,82.69,82.641,7.71497938]
[1772435657518,4.00876966,82.67,82.63,4.00876966]
[1772435657725,4.00876966,82.67,82.631,7.71006092]
[1772435658426,4.00876966,82.67,82.634,7.71006092]
[1772435661231,14.89576966,82.67,82.612,7.70785458]
[1772435661426,4.00876966,82.65,82.612,7.70785458]
[1772435661924,4.00876966,82.64,82.612,7.70785458]
[1772435662128,4.00876966,82.62,82.581,7.67314459]
[1772435663225,4.00876966,82.61,82.581,7.67314459]
[1772435664021,4.00876966,82.62,82.581,7.67314459]
[1772435664221,8.9648962,82.684,82.59,4.00876966]
[1772435664527,36.37,82.693,82.591,7.64677182]
[1772435664732,14.85264508,82.711,82.525,324.24189181]
[1772435664733,10.99212826,82.724,82.641,7.64697193]
[1772435664924,4.00876966,82.69,82.652,10.889]
[1772435665125,4.00876966,82.69,82.651,7.64697193]
[1772435666423,4.00876966,82.69,82.641,7.69602123]
[1772435666620,4.00876966,82.68,82.641,7.69602123]
[1772435667222,4.00876966,82.67,82.63,4.00876966]
[1772435667427,4.00876966,82.67,82.623,7.69619361]
[1772435667623,4.00876966,82.66,82.623,7.69619361]
[1772435668530,10.886,82.679,82.623,7.69619361]
[1772435669230,20.44722471,82.67,82.609,18.74188092]
[1772435669429,20.44722471,82.67,82.61,7.84688092]
[1772435670232,9.56022471,82.68,82.613,7.84770609]
[1772435670427,9.56022471,82.65,82.597,7.84770609]
[1772435670629,9.56022471,82.65,82.597,10.897]
[1772435670829,9.56022471,82.66,82.598,7.84780798]
[1772435672028,9.56022471,82.66,82.6,7.84759163]
[1772435672228,9.56022471,82.68,82.6,7.84759163]
[1772435672431,9.56022471,82.66,82.6,7.84759163]
[1772435673230,10.888,82.659,82.602,7.84768966]
[1772435675534,20.45022471,82.65,82.602,7.84768966]
[1772435675837,9.56022471,82.64,82.602,7.84768966]
[1772435676436,9.56815013,82.64,82.571,7.82073576]
[1772435676636,9.56815013,82.62,82.571,7.82073576]
[1772435678539,9.56815013,82.62,82.506,22.40467139]
[1772435678540,9.56815013,82.63,82.573,7.82231784]
[1772435678729,9.56815013,82.66,82.573,7.82231784]
[1772435678930,9.56815013,82.62,82.561,7.82231784]
[1772435680238,9.56815013,82.63,82.561,7.82231784]
[1772435680433,9.56815013,82.63,82.581,7.86161036]
[1772435682135,9.56815013,82.61,82.56,7.86450746]
[1772435682539,9.56815013,82.62,82.56,7.86450746]
[1772435683336,10.894,82.618,82.562,7.86475343]
[1772435683533,9.56815013,82.63,82.581,7.86475343]
[1772435684141,9.56815013,82.62,82.581,7.86475343]
[1772435684940,9.56815013,82.63,82.581,7.86475343]
[1772435685136,11.01305634,82.674,82.581,7.86475343]
[1772435685137,9.56815013,82.62,82.581,7.86475343]
[1772435685944,9.56815013,82.63,82.581,7.86475343]
[1772435686341,10.892,82.629,82.581,7.86475343]
[1772435686645,10.892,82.629,82.564,10.901]
[1772435686845,9.56815013,82.62,82.568,7.86764034]
[1772435687237,10.892,82.629,82.572,7.86764034]
[1772435687441,10.891,82.638,82.572,7.86764034]
[1772435687936,9.56815013,82.65,82.586,7.86839485]
[1772435688139,11.01305634,82.705,82.601,7.86839485]
[1772435688339,278.37,82.698,82.601,7.86839485]
[1772435688535,9.56815013,82.67,82.601,7.86839485]
[1772435688943,278.37,82.698,82.601,7.86839485]
[1772435689140,10.888,82.665,82.601,7.86839485]
[1772435689546,9.56815013,82.66,82.601,7.86839485]
[1772435689741,9.56815013,82.64,82.586,7.80813681]
[1772435691245,10.891,82.636,82.586,7.80813681]
[1772435691447,9.56815013,82.64,82.587,7.80842152]
[1772435691843,9.56815013,82.64,82.589,18.70505936]
[1772435692045,9.56815013,82.65,82.591,7.80705936]
[1772435692245,9.56815013,82.66,82.591,7.80705936]
[1772435692951,10.888,82.659,82.603,7.80733811]
[1772435694148,9.56815013,82.66,82.603,7.80733811]
[1772435694452,10.89,82.648,82.603,7.80733811]
[1772435695542,10.891,82.64,82.603,7.80733811]
[1772435695850,10.891,82.64,82.588,7.80423987]
[1772435696254,20.45915013,82.64,82.588,7.80423987]
[1772435696851,10.892,82.631,82.588,7.80423987]
[1772435697951,8.84805369,82.665,82.588,7.80423987]
[1772435698152,9.56815013,82.64,82.588,7.80423987]